[Event "Early-Titled-Tuesday-Blitz-January-30-2024"]
[Site "Chess.com"]
[Date "2024.01.30"]
[Round "10"]
[White "ilqar_74"]
[Black "IlanSchnaider"]
[Result "1-0"]
[WhiteElo "2845"]
[BlackElo "2667"]
[TimeControl "180+1"]
[EndTime "10:00:39 PST"]
[Termination "ilqar_74 won on time"]

1. e4 {[%clk 0:03:00.9]} 1... c5 {[%clk 0:02:59.4]} 2. Nf3 {[%clk 0:03:01.4]}
2... d6 {[%clk 0:03:00.1]} 3. d4 {[%clk 0:03:02.1]} 3... cxd4 {[%clk 0:03:01]}
4. Nxd4 {[%clk 0:03:03]} 4... Nf6 {[%clk 0:03:01.7]} 5. Nc3 {[%clk 0:03:03.6]}
5... a6 {[%clk 0:03:02.4]} 6. a3 {[%clk 0:03:04.3]} 6... e5 {[%clk 0:03:02]} 7.
Nf5 {[%clk 0:03:04.9]} 7... d5 {[%clk 0:03:00.1]} 8. Bg5 {[%clk 0:03:04.7]} 8...
d4 {[%clk 0:02:43.7]} 9. Bxf6 {[%clk 0:03:03]} 9... Qxf6 {[%clk 0:02:42.9]} 10.
Nd5 {[%clk 0:03:02.8]} 10... Qd8 {[%clk 0:02:43]} 11. c4 {[%clk 0:03:03.1]}
11... g6 {[%clk 0:02:31.8]} 12. Nxd4 {[%clk 0:03:03.3]} 12... Bg7 {[%clk
0:02:01.8]} 13. Nf3 {[%clk 0:03:02.1]} 13... O-O {[%clk 0:02:01.6]} 14. Bd3
{[%clk 0:03:02.7]} 14... Nc6 {[%clk 0:02:00.3]} 15. O-O {[%clk 0:03:03.3]} 15...
Bg4 {[%clk 0:02:00.6]} 16. h3 {[%clk 0:03:02.8]} 16... Bxf3 {[%clk 0:02:01]} 17.
Qxf3 {[%clk 0:03:03.7]} 17... Nd4 {[%clk 0:02:01.7]} 18. Qd1 {[%clk 0:03:04.2]}
18... f5 {[%clk 0:02:02.1]} 19. b4 {[%clk 0:02:54.2]} 19... Rc8 {[%clk 0:01:57]}
20. c5 {[%clk 0:02:52.4]} 20... Kh8 {[%clk 0:01:55]} 21. Rc1 {[%clk 0:02:42.7]}
21... Qg5 {[%clk 0:01:49.3]} 22. Kh1 {[%clk 0:02:37.2]} 22... Qh4 {[%clk
0:01:33.8]} 23. Qe1 {[%clk 0:02:25.3]} 23... Bh6 {[%clk 0:01:24.3]} 24. Rb1
{[%clk 0:02:14.9]} 24... Rcd8 {[%clk 0:00:42.3]} 25. f3 {[%clk 0:02:13]} 25...
Qh5 {[%clk 0:00:29.3]} 26. a4 {[%clk 0:02:07.5]} 26... g5 {[%clk 0:00:20.3]} 27.
Ne3 {[%clk 0:02:02.3]} 27... Nxf3 {[%clk 0:00:08.9]} 28. Rxf3 {[%clk 0:01:57.5]}
28... Rxd3 {[%clk 0:00:09.5]} 29. Qf1 {[%clk 0:01:57]} 29... g4 {[%clk
0:00:06.7]} 30. Rxf5 {[%clk 0:01:55.6]} 30... Rxf5 {[%clk 0:00:05.2]} 31. Qxf5
{[%clk 0:01:55.6]} 31... Qxf5 {[%clk 0:00:02.4]} 32. Nxf5 {[%clk 0:01:56.5]}
32... Bf4 {[%clk 0:00:02.2]} 33. hxg4 {[%clk 0:01:53.1]} 33... Ra3 {[%clk
0:00:02.5]} 34. b5 {[%clk 0:01:53.1]} 34... axb5 {[%clk 0:00:01.6]} 35. axb5
{[%clk 0:01:52.8]} 35... Rc3 {[%clk 0:00:01.8]} 36. c6 {[%clk 0:01:51.3]} 36...
b6 {[%clk 0:00:01.8]} 37. Kg1 {[%clk 0:01:50.3]} 37... Kg8 {[%clk 0:00:01.7]}
38. Kf2 {[%clk 0:01:50.2]} 38... Kf7 {[%clk 0:00:02.1]} 39. g3 {[%clk
0:01:50.3]} 39... Bg5 {[%clk 0:00:01.8]} 40. Rd1 {[%clk 0:01:49.2]} 40... Rc2+
{[%clk 0:00:01.7]} 41. Kf1 {[%clk 0:01:49.4]} 41... Rc3 {[%clk 0:00:01.1]} 42.
Rd7+ {[%clk 0:01:49.8]} 42... Ke8 {[%clk 0:00:01.5]} 43. Nd6+ {[%clk 0:01:48.2]}
43... Kf8 {[%clk 0:00:01.8]} 44. c7 {[%clk 0:01:47.7]} 44... Rc1+ {[%clk
0:00:01.7]} 45. Ke2 {[%clk 0:01:47.7]} 45... Rc2+ {[%clk 0:00:02.2]} 46. Kd1
{[%clk 0:01:47.2]} 46... Rc1+ {[%clk 0:00:02.8]} 47. Ke2 {[%clk 0:01:46]} 47...
Rc2+ {[%clk 0:00:03.2]} 48. Kd3 {[%clk 0:01:46.4]} 48... Rd2+ {[%clk 0:00:01.8]}
49. Kc3 {[%clk 0:01:46.9]} 1-0

[Event "Early-Titled-Tuesday-Blitz-January-30-2024"]
[Site "Chess.com"]
[Date "2024.01.30"]
[Round "10"]
[White "Durarbayli"]
[Black "tuschessCM1"]
[Result "1-0"]
[WhiteElo "2902"]
[BlackElo "2674"]
[TimeControl "180+1"]
[EndTime "10:00:43 PST"]
[Termination "Durarbayli won on time"]

1. c4 {[%clk 0:03:00.9]} 1... Nf6 {[%clk 0:03:00]} 2. Nc3 {[%clk 0:03:00.5]}
2... g6 {[%clk 0:03:00.5]} 3. g3 {[%clk 0:03:00.5]} 3... Bg7 {[%clk 0:03:00.8]}
4. Bg2 {[%clk 0:03:01.2]} 4... O-O {[%clk 0:03:01.3]} 5. d4 {[%clk 0:03:01.9]}
5... d6 {[%clk 0:03:01.7]} 6. Nf3 {[%clk 0:03:02.1]} 6... Nc6 {[%clk 0:03:02.3]}
7. d5 {[%clk 0:03:02.6]} 7... Na5 {[%clk 0:02:56.8]} 8. Nd2 {[%clk 0:03:02.7]}
8... c5 {[%clk 0:02:54]} 9. O-O {[%clk 0:03:00.5]} 9... Rb8 {[%clk 0:02:51.8]}
10. a4 {[%clk 0:02:49.8]} 10... a6 {[%clk 0:02:50.6]} 11. Ra3 {[%clk 0:02:46.9]}
11... Bd7 {[%clk 0:02:48.3]} 12. b3 {[%clk 0:02:36.4]} 12... b5 {[%clk
0:01:58.2]} 13. axb5 {[%clk 0:02:35.2]} 13... axb5 {[%clk 0:01:59.1]} 14. cxb5
{[%clk 0:02:35.7]} 14... Bxb5 {[%clk 0:01:59.5]} 15. Bb2 {[%clk 0:02:35.6]}
15... Bd7 {[%clk 0:01:47.4]} 16. Qa1 {[%clk 0:02:33.7]} 16... Nb7 {[%clk
0:01:26]} 17. Nc4 {[%clk 0:02:27.9]} 17... Ng4 {[%clk 0:01:24.8]} 18. Ne4 {[%clk
0:02:20.9]} 18... Bxb2 {[%clk 0:01:13.8]} 19. Qxb2 {[%clk 0:02:21.8]} 19... Bb5
{[%clk 0:01:02.3]} 20. Rfa1 {[%clk 0:02:08.5]} 20... Bxc4 {[%clk 0:00:45.9]} 21.
bxc4 {[%clk 0:02:09.4]} 21... Ne5 {[%clk 0:00:46.4]} 22. Qc3 {[%clk 0:02:09.4]}
22... Qb6 {[%clk 0:00:40.8]} 23. Rb3 {[%clk 0:02:02.4]} 23... Qc7 {[%clk
0:00:38.7]} 24. Ra7 {[%clk 0:02:02.3]} 24... Qc8 {[%clk 0:00:19.1]} 25. h3
{[%clk 0:02:02.3]} 25... Rd8 {[%clk 0:00:04.6]} 26. f4 {[%clk 0:01:59.9]} 26...
Nd7 {[%clk 0:00:05]} 27. Kh2 {[%clk 0:01:58.2]} 27... Nf8 {[%clk 0:00:04.1]} 28.
Nf2 {[%clk 0:01:54.9]} 28... Rd7 {[%clk 0:00:04.4]} 29. Ng4 {[%clk 0:01:55.1]}
29... f6 {[%clk 0:00:03.1]} 30. e4 {[%clk 0:01:51.3]} 30... Nd8 {[%clk
0:00:03.4]} 31. Rba3 {[%clk 0:01:45.4]} 31... Rxa7 {[%clk 0:00:03.2]} 32. Rxa7
{[%clk 0:01:46.3]} 32... Rb7 {[%clk 0:00:04.1]} 33. Ra1 {[%clk 0:01:45.4]} 33...
Qb8 {[%clk 0:00:04]} 34. e5 {[%clk 0:01:43.5]} 34... Rb3 {[%clk 0:00:04.1]} 35.
Qe1 {[%clk 0:01:43.3]} 35... f5 {[%clk 0:00:04.2]} 36. exd6 {[%clk 0:01:41.8]}
36... exd6 {[%clk 0:00:02.8]} 37. Nh6+ {[%clk 0:01:37]} 37... Kg7 {[%clk
0:00:03.1]} 38. Qe7+ {[%clk 0:01:37.6]} 38... Kxh6 {[%clk 0:00:03.7]} 39. Qxf8+
{[%clk 0:01:38]} 39... Kh5 {[%clk 0:00:04.4]} 40. Qe7 {[%clk 0:01:34.4]} 40...
Kh6 {[%clk 0:00:03.9]} 41. Qf8+ {[%clk 0:01:35.1]} 41... Kh5 {[%clk 0:00:04.2]}
42. Re1 {[%clk 0:01:30]} 42... Rb2 {[%clk 0:00:04]} 43. Qf6 {[%clk 0:01:28.4]}
43... Kh6 {[%clk 0:00:03.6]} 44. Re7 {[%clk 0:01:28.5]} 44... Nf7 {[%clk
0:00:01.8]} 45. Rxf7 {[%clk 0:01:24.9]} 1-0

[Event "Early-Titled-Tuesday-Blitz-January-30-2024"]
[Site "Chess.com"]
[Date "2024.01.30"]
[Round "10"]
[White "WindWhistler11"]
[Black "Adar_07"]
[Result "0-1"]
[WhiteElo "2479"]
[BlackElo "2646"]
[TimeControl "180+1"]
[EndTime "10:00:46 PST"]
[Termination "Adar_07 won on time"]

1. Nf3 {[%clk 0:02:50.7]} 1... Nf6 {[%clk 0:02:57.9]} 2. g3 {[%clk 0:02:51.6]}
2... Nc6 {[%clk 0:02:57.6]} 3. d3 {[%clk 0:02:52.5]} 3... e5 {[%clk 0:02:58]} 4.
Nbd2 {[%clk 0:02:53.3]} 4... d5 {[%clk 0:02:58.6]} 5. e4 {[%clk 0:02:50.8]} 5...
dxe4 {[%clk 0:02:58.7]} 6. dxe4 {[%clk 0:02:51.1]} 6... Bc5 {[%clk 0:02:55.9]}
7. h3 {[%clk 0:02:48.5]} 7... Be6 {[%clk 0:02:47.3]} 8. Ng5 {[%clk 0:02:45.8]}
8... Qd4 {[%clk 0:02:43.8]} 9. Qe2 {[%clk 0:02:41.2]} 9... O-O-O {[%clk
0:02:18]} 10. Nxe6 {[%clk 0:02:09.3]} 10... fxe6 {[%clk 0:02:18.9]} 11. Bg2
{[%clk 0:01:59.2]} 11... Nb4 {[%clk 0:02:14.6]} 12. Nb3 {[%clk 0:01:53.5]} 12...
Qd6 {[%clk 0:01:58.4]} 13. O-O {[%clk 0:01:50.3]} 13... Bb6 {[%clk 0:01:57.5]}
14. a4 {[%clk 0:01:47.6]} 14... a5 {[%clk 0:01:57.3]} 15. h4 {[%clk 0:01:25.4]}
15... Kb8 {[%clk 0:01:45.5]} 16. Bg5 {[%clk 0:01:04.2]} 16... h6 {[%clk
0:01:38.2]} 17. Bxf6 {[%clk 0:01:01.1]} 17... gxf6 {[%clk 0:01:39.1]} 18. Rfd1
{[%clk 0:00:58.1]} 18... Qc6 {[%clk 0:01:31.9]} 19. c3 {[%clk 0:00:56.7]} 19...
Rxd1+ {[%clk 0:01:30.9]} 20. Qxd1 {[%clk 0:00:49.5]} 20... Na6 {[%clk
0:01:31.2]} 21. Qf3 {[%clk 0:00:44.3]} 21... Rf8 {[%clk 0:01:28.9]} 22. Qh5
{[%clk 0:00:39.6]} 22... Nc5 {[%clk 0:01:18.2]} 23. Nxc5 {[%clk 0:00:35.7]}
23... Qxc5 {[%clk 0:01:18.3]} 24. Rf1 {[%clk 0:00:36.2]} 24... f5 {[%clk
0:01:16.9]} 25. Qxh6 {[%clk 0:00:29.3]} 25... fxe4 {[%clk 0:01:15.7]} 26. Qxe6
{[%clk 0:00:25.9]} 26... e3 {[%clk 0:00:48.5]} 27. fxe3 {[%clk 0:00:17.8]} 27...
Rxf1+ {[%clk 0:00:47.7]} 28. Kxf1 {[%clk 0:00:15.6]} 28... Qxe3 {[%clk
0:00:48.2]} 0-1

[Event "Early-Titled-Tuesday-Blitz-January-30-2024"]
[Site "Chess.com"]
[Date "2024.01.30"]
[Round "10"]
[White "MKlose11"]
[Black "only_strong_moves"]
[Result "0-1"]
[WhiteElo "2653"]
[BlackElo "2552"]
[TimeControl "180+1"]
[EndTime "10:00:50 PST"]
[Termination "only_strong_moves won by checkmate"]

1. e4 {[%clk 0:01:45.2]} 1... c5 {[%clk 0:02:59.1]} 2. Nc3 {[%clk 0:01:42.9]}
2... d6 {[%clk 0:02:57.7]} 3. d3 {[%clk 0:01:43.8]} 3... Nc6 {[%clk 0:02:56.9]}
4. g3 {[%clk 0:01:44.2]} 4... g6 {[%clk 0:02:57.1]} 5. Bg2 {[%clk 0:01:44.7]}
5... Bg7 {[%clk 0:02:57.4]} 6. Be3 {[%clk 0:01:45.2]} 6... e6 {[%clk 0:02:56.8]}
7. Qd2 {[%clk 0:01:45.2]} 7... h6 {[%clk 0:02:53.5]} 8. Nge2 {[%clk 0:01:44.5]}
8... Nd4 {[%clk 0:02:53.4]} 9. O-O {[%clk 0:01:43.9]} 9... Ne7 {[%clk
0:02:51.4]} 10. Nc1 {[%clk 0:01:43.7]} 10... Rb8 {[%clk 0:02:43.6]} 11. Nd1
{[%clk 0:01:40.3]} 11... Ndc6 {[%clk 0:02:34.2]} 12. c3 {[%clk 0:01:37.6]} 12...
e5 {[%clk 0:02:34.1]} 13. Ne2 {[%clk 0:01:33.2]} 13... f5 {[%clk 0:02:32.5]} 14.
d4 {[%clk 0:01:30.2]} 14... cxd4 {[%clk 0:02:29]} 15. cxd4 {[%clk 0:01:29.2]}
15... d5 {[%clk 0:01:37]} 16. exd5 {[%clk 0:01:18.8]} 16... Nxd5 {[%clk
0:01:33.7]} 17. dxe5 {[%clk 0:01:19.1]} 17... Nxe3 {[%clk 0:01:32.5]} 18. Qxe3
{[%clk 0:01:05.7]} 18... O-O {[%clk 0:01:30.2]} 19. f4 {[%clk 0:01:04.7]} 19...
Be6 {[%clk 0:01:30]} 20. Ndc3 {[%clk 0:01:04.4]} 20... Qa5 {[%clk 0:01:23]} 21.
Rad1 {[%clk 0:00:54.2]} 21... Rfd8 {[%clk 0:01:23.1]} 22. a3 {[%clk 0:00:50]}
22... Bf8 {[%clk 0:01:22.4]} 23. Kh1 {[%clk 0:00:32]} 23... Bc5 {[%clk
0:01:19.7]} 24. Qc1 {[%clk 0:00:32]} 24... Bb3 {[%clk 0:01:14.3]} 25. Rxd8+
{[%clk 0:00:27.9]} 25... Rxd8 {[%clk 0:01:15.2]} 26. Nd5 {[%clk 0:00:18.7]}
26... Bxd5 {[%clk 0:01:14.7]} 27. b4 {[%clk 0:00:18.3]} 27... Bxg2+ {[%clk
0:01:11.2]} 28. Kxg2 {[%clk 0:00:17.9]} 28... Bxb4 {[%clk 0:01:10.7]} 29. axb4
{[%clk 0:00:18.8]} 29... Qd5+ {[%clk 0:01:11.2]} 30. Kh3 {[%clk 0:00:17.5]}
30... Nxb4 {[%clk 0:01:06.4]} 31. Nc3 {[%clk 0:00:17.7]} 31... Qd4 {[%clk
0:01:00.8]} 32. Rd1 {[%clk 0:00:16.8]} 32... Nd3 {[%clk 0:01:00.7]} 33. Rxd3
{[%clk 0:00:09.1]} 33... Qxd3 {[%clk 0:01:00.1]} 34. Qb2 {[%clk 0:00:09.6]}
34... g5 {[%clk 0:00:56.5]} 35. Qb3+ {[%clk 0:00:08.3]} 35... Kh8 {[%clk
0:00:56.1]} 36. Qf7 {[%clk 0:00:07.1]} 36... Qf1# {[%clk 0:00:55.9]} 0-1

[Event "Early-Titled-Tuesday-Blitz-January-30-2024"]
[Site "Chess.com"]
[Date "2024.01.30"]
[Round "10"]
[White "NowInChess"]
[Black "Tunahan_Makaraci"]
[Result "0-1"]
[WhiteElo "2278"]
[BlackElo "2517"]
[TimeControl "180+1"]
[EndTime "10:00:53 PST"]
[Termination "Tunahan_Makaraci won by resignation"]

1. e4 {[%clk 0:03:00.9]} 1... c6 {[%clk 0:02:44.7]} 2. d4 {[%clk 0:03:00.3]}
2... d5 {[%clk 0:02:45]} 3. exd5 {[%clk 0:03:01.2]} 3... cxd5 {[%clk 0:02:45.3]}
4. c4 {[%clk 0:03:01.8]} 4... Nf6 {[%clk 0:02:44.9]} 5. Nc3 {[%clk 0:03:02]}
5... Nc6 {[%clk 0:02:43.3]} 6. Bf4 {[%clk 0:03:01.4]} 6... Be6 {[%clk
0:02:40.9]} 7. c5 {[%clk 0:03:00.8]} 7... g6 {[%clk 0:02:37.7]} 8. Bb5 {[%clk
0:02:53.5]} 8... Bg7 {[%clk 0:02:37.3]} 9. Nf3 {[%clk 0:02:53.7]} 9... O-O
{[%clk 0:02:36.8]} 10. Bxc6 {[%clk 0:02:53.4]} 10... bxc6 {[%clk 0:02:36.7]} 11.
O-O {[%clk 0:02:54]} 11... Bg4 {[%clk 0:02:36.5]} 12. h3 {[%clk 0:02:53.5]}
12... Bxf3 {[%clk 0:02:36.4]} 13. Qxf3 {[%clk 0:02:54.4]} 13... e6 {[%clk
0:02:36.2]} 14. Rab1 {[%clk 0:02:36]} 14... Nd7 {[%clk 0:02:35.6]} 15. Qd3
{[%clk 0:02:27]} 15... f6 {[%clk 0:02:32.6]} 16. b4 {[%clk 0:02:22.4]} 16... e5
{[%clk 0:02:32.1]} 17. Be3 {[%clk 0:02:22.9]} 17... e4 {[%clk 0:02:31.5]} 18.
Qd2 {[%clk 0:02:18.7]} 18... a6 {[%clk 0:02:29.8]} 19. a4 {[%clk 0:02:17]} 19...
f5 {[%clk 0:02:20.6]} 20. b5 {[%clk 0:02:15.7]} 20... axb5 {[%clk 0:02:21.4]}
21. axb5 {[%clk 0:02:15.7]} 21... Qc8 {[%clk 0:02:18.7]} 22. Rb2 {[%clk
0:01:57.2]} 22... h6 {[%clk 0:02:17]} 23. Bxh6 {[%clk 0:01:42.8]} 23... Ra3
{[%clk 0:02:10.9]} 24. Bxg7 {[%clk 0:01:37.1]} 24... Kxg7 {[%clk 0:02:10.3]} 25.
Rfb1 {[%clk 0:01:23.5]} 25... f4 {[%clk 0:02:08.2]} 26. bxc6 {[%clk 0:01:20.2]}
26... Qxc6 {[%clk 0:02:07.9]} 27. Rb7 {[%clk 0:01:19.9]} 27... Kg8 {[%clk
0:02:05.4]} 28. Qb2 {[%clk 0:01:11.1]} 28... Rfa8 {[%clk 0:01:56.9]} 29. Qb5
{[%clk 0:00:56]} 29... Qxb5 {[%clk 0:01:40.1]} 30. Nxb5 {[%clk 0:00:55.9]} 30...
Ra1 {[%clk 0:01:39.8]} 31. Nc3 {[%clk 0:00:37.4]} 31... Rxb1+ {[%clk 0:01:38.9]}
32. Rxb1 {[%clk 0:00:38.3]} 32... Nf6 {[%clk 0:01:36.4]} 33. Rb6 {[%clk
0:00:35.9]} 33... Kg7 {[%clk 0:01:36]} 34. Rd6 {[%clk 0:00:34.8]} 34... Ra1+
{[%clk 0:01:33.4]} 35. Kh2 {[%clk 0:00:34.3]} 35... e3 {[%clk 0:01:33.8]} 36.
fxe3 {[%clk 0:00:34.5]} 36... fxe3 {[%clk 0:01:34.1]} 37. Kg3 {[%clk 0:00:30]}
37... Ne4+ {[%clk 0:01:28.9]} 38. Nxe4 {[%clk 0:00:29.5]} 38... e2 {[%clk
0:01:29]} 39. Rd7+ {[%clk 0:00:18.5]} 39... Kh6 {[%clk 0:01:22.9]} 40. Ng5
{[%clk 0:00:08.6]} 40... e1=Q+ {[%clk 0:01:22.4]} 41. Kg4 {[%clk 0:00:07.5]}
41... Qe2+ {[%clk 0:01:19.7]} 42. Nf3 {[%clk 0:00:07.5]} 42... Qxg2+ {[%clk
0:01:19.5]} 43. Kf4 {[%clk 0:00:08]} 43... g5+ {[%clk 0:01:19.4]} 44. Ke5 {[%clk
0:00:05.4]} 44... Re1+ {[%clk 0:01:19.2]} 0-1

[Event "Early-Titled-Tuesday-Blitz-January-30-2024"]
[Site "Chess.com"]
[Date "2024.01.30"]
[Round "10"]
[White "Alenzer"]
[Black "giovannibrandao7"]
[Result "0-1"]
[WhiteElo "2117"]
[BlackElo "2124"]
[TimeControl "180+1"]
[EndTime "10:00:53 PST"]
[Termination "giovannibrandao7 won by checkmate"]

1. e4 {[%clk 0:02:59.6]} 1... c5 {[%clk 0:03:00.6]} 2. Nf3 {[%clk 0:02:59.3]}
2... d6 {[%clk 0:03:01.3]} 3. c3 {[%clk 0:02:59]} 3... Nf6 {[%clk 0:03:01.6]} 4.
h3 {[%clk 0:02:59.3]} 4... Nc6 {[%clk 0:03:00.7]} 5. Bd3 {[%clk 0:02:59.2]} 5...
g6 {[%clk 0:03:01]} 6. Bc2 {[%clk 0:02:59.2]} 6... Bg7 {[%clk 0:03:01.7]} 7. O-O
{[%clk 0:02:59.5]} 7... O-O {[%clk 0:03:01.3]} 8. Re1 {[%clk 0:02:59.7]} 8... e5
{[%clk 0:02:54.1]} 9. d4 {[%clk 0:02:58.6]} 9... cxd4 {[%clk 0:02:55]} 10. cxd4
{[%clk 0:02:58.7]} 10... Qe7 {[%clk 0:02:42.3]} 11. Nc3 {[%clk 0:02:55.5]} 11...
h6 {[%clk 0:02:39.9]} 12. a3 {[%clk 0:02:45.4]} 12... a6 {[%clk 0:02:39.7]} 13.
Na4 {[%clk 0:02:37.5]} 13... b5 {[%clk 0:02:36.8]} 14. Nb6 {[%clk 0:02:35.5]}
14... Rb8 {[%clk 0:02:37]} 15. Nd5 {[%clk 0:02:17.2]} 15... Qd8 {[%clk
0:02:18.7]} 16. Be3 {[%clk 0:01:59.2]} 16... Bb7 {[%clk 0:02:12.8]} 17. Qd2
{[%clk 0:01:53]} 17... Kh7 {[%clk 0:02:09.9]} 18. dxe5 {[%clk 0:01:43.9]} 18...
dxe5 {[%clk 0:02:07.3]} 19. Bb6 {[%clk 0:01:19.3]} 19... Qc8 {[%clk 0:01:41.1]}
20. Bc7 {[%clk 0:01:05.4]} 20... Nxd5 {[%clk 0:01:38.8]} 21. Bxb8 {[%clk
0:01:05]} 21... Nf4 {[%clk 0:01:26.4]} 22. Bxe5 {[%clk 0:00:27.2]} 22... Nxe5
{[%clk 0:01:25.3]} 23. Qxf4 {[%clk 0:00:20.3]} 23... Nxf3+ {[%clk 0:01:25.4]}
24. gxf3 {[%clk 0:00:16.4]} 24... Qxc2 {[%clk 0:01:26.3]} 25. Rac1 {[%clk
0:00:14.2]} 25... Qxb2 {[%clk 0:01:25.6]} 26. Rc7 {[%clk 0:00:14.1]} 26... Bc8
{[%clk 0:01:01.7]} 27. Rxf7 {[%clk 0:00:13.6]} 27... Rxf7 {[%clk 0:01:00.6]} 28.
Qxf7 {[%clk 0:00:13.9]} 28... Bxh3 {[%clk 0:00:46.4]} 29. Rd1 {[%clk 0:00:13.3]}
29... Qe5 {[%clk 0:00:41.6]} 30. Rc1 {[%clk 0:00:09]} 30... Qg5+ {[%clk
0:00:41.1]} 31. Kh2 {[%clk 0:00:07]} 31... Qg2# {[%clk 0:00:42]} 0-1

[Event "Early-Titled-Tuesday-Blitz-January-30-2024"]
[Site "Chess.com"]
[Date "2024.01.30"]
[Round "10"]
[White "Lion-Al-Messi"]
[Black "ValentunHulka"]
[Result "1-0"]
[WhiteElo "2599"]
[BlackElo "2783"]
[TimeControl "180+1"]
[EndTime "10:00:54 PST"]
[Termination "Lion-Al-Messi won by resignation"]

1. e4 {[%clk 0:03:00.9]} 1... c5 {[%clk 0:03:00.2]} 2. Nf3 {[%clk 0:03:01.4]}
2... d6 {[%clk 0:03:00.7]} 3. d4 {[%clk 0:03:02]} 3... cxd4 {[%clk 0:03:01.6]}
4. Nxd4 {[%clk 0:03:02.5]} 4... e5 {[%clk 0:03:02.5]} 5. Nb3 {[%clk 0:03:01]}
5... Nf6 {[%clk 0:03:02.7]} 6. Nc3 {[%clk 0:03:00.8]} 6... Be7 {[%clk
0:03:03.3]} 7. f3 {[%clk 0:03:00.1]} 7... O-O {[%clk 0:03:03.3]} 8. g4 {[%clk
0:03:00.7]} 8... a6 {[%clk 0:03:03.6]} 9. h4 {[%clk 0:03:00.1]} 9... b5 {[%clk
0:03:03.8]} 10. Be3 {[%clk 0:02:58]} 10... Be6 {[%clk 0:03:03.4]} 11. Qd2 {[%clk
0:02:54.4]} 11... Nbd7 {[%clk 0:02:57.6]} 12. h5 {[%clk 0:02:52.4]} 12... b4
{[%clk 0:02:41]} 13. Nd5 {[%clk 0:02:51.7]} 13... Bxd5 {[%clk 0:02:34.1]} 14.
exd5 {[%clk 0:02:52.6]} 14... Nb6 {[%clk 0:02:34.4]} 15. Bxb6 {[%clk 0:02:46.2]}
15... Qxb6 {[%clk 0:02:34.4]} 16. g5 {[%clk 0:02:43.2]} 16... Nd7 {[%clk
0:02:21.8]} 17. Bd3 {[%clk 0:02:43.4]} 17... a5 {[%clk 0:02:11.3]} 18. g6 {[%clk
0:02:41.7]} 18... h6 {[%clk 0:02:03.6]} 19. a4 {[%clk 0:02:30.7]} 19... bxa3
{[%clk 0:01:53.5]} 20. Rxa3 {[%clk 0:02:30.1]} 20... a4 {[%clk 0:01:51]} 21. Bf5
{[%clk 0:02:08.9]} 21... axb3 {[%clk 0:01:34.8]} 22. gxf7+ {[%clk 0:02:08.8]}
22... Kh8 {[%clk 0:01:26.4]} 23. Rxb3 {[%clk 0:01:22.8]} 23... Qc7 {[%clk
0:01:02]} 24. Rc3 {[%clk 0:01:23.1]} 24... Nc5 {[%clk 0:00:52.8]} 25. Qg2 {[%clk
0:01:19.6]} 25... Ra1+ {[%clk 0:00:45.2]} 26. Ke2 {[%clk 0:01:13.8]} 26... Rxh1
{[%clk 0:00:45.1]} 27. Qxh1 {[%clk 0:01:13.6]} 27... Qb7 {[%clk 0:00:42.6]} 28.
Qg2 {[%clk 0:01:09.6]} 28... Nd7 {[%clk 0:00:20.7]} 29. Rb3 {[%clk 0:01:00.5]}
29... Qa6+ {[%clk 0:00:18.9]} 30. Bd3 {[%clk 0:01:00.4]} 30... Qa5 {[%clk
0:00:15.6]} 31. Rb7 {[%clk 0:00:59.2]} 31... Nf6 {[%clk 0:00:06.7]} 32. Rxe7
{[%clk 0:00:58]} 32... Qxd5 {[%clk 0:00:07.4]} 33. Qg6 {[%clk 0:00:57]} 33...
Qc6 {[%clk 0:00:04.5]} 34. Re6 {[%clk 0:00:55.4]} 34... Qd7 {[%clk 0:00:01.3]}
35. Rxf6 {[%clk 0:00:55.3]} 1-0

[Event "Early-Titled-Tuesday-Blitz-January-30-2024"]
[Site "Chess.com"]
[Date "2024.01.30"]
[Round "10"]
[White "santosalberto1987"]
[Black "LileKoridze"]
[Result "0-1"]
[WhiteElo "2521"]
[BlackElo "2389"]
[TimeControl "180+1"]
[EndTime "10:00:55 PST"]
[Termination "LileKoridze won by resignation"]

1. e4 {[%clk 0:03:00.9]} 1... c5 {[%clk 0:02:59.3]} 2. Nf3 {[%clk 0:03:00]} 2...
d6 {[%clk 0:02:59.6]} 3. Bb5+ {[%clk 0:02:59.1]} 3... Nd7 {[%clk 0:02:59.4]} 4.
d4 {[%clk 0:02:59]} 4... cxd4 {[%clk 0:02:59.3]} 5. Qxd4 {[%clk 0:02:59.9]} 5...
a6 {[%clk 0:02:59.9]} 6. Bxd7+ {[%clk 0:03:00.2]} 6... Bxd7 {[%clk 0:03:00]} 7.
Nc3 {[%clk 0:02:59.2]} 7... Nf6 {[%clk 0:03:00.1]} 8. Bg5 {[%clk 0:02:59]} 8...
e6 {[%clk 0:02:56.6]} 9. O-O-O {[%clk 0:02:58.7]} 9... Be7 {[%clk 0:02:54.6]}
10. Rhe1 {[%clk 0:02:57.6]} 10... Qa5 {[%clk 0:02:54]} 11. e5 {[%clk 0:02:53.7]}
11... dxe5 {[%clk 0:02:52.8]} 12. Nxe5 {[%clk 0:02:53.6]} 12... Rd8 {[%clk
0:02:52.1]} 13. Qh4 {[%clk 0:02:38]} 13... h6 {[%clk 0:02:29.7]} 14. f4 {[%clk
0:02:17.4]} 14... O-O {[%clk 0:02:20.4]} 15. Bxh6 {[%clk 0:02:11.1]} 15... gxh6
{[%clk 0:02:13.5]} 16. Qxh6 {[%clk 0:02:10.7]} 16... Bc6 {[%clk 0:01:18.3]} 17.
Qg5+ {[%clk 0:02:03.7]} 17... Kh8 {[%clk 0:01:17.6]} 18. Rxd8 {[%clk 0:02:03.4]}
18... Qxd8 {[%clk 0:01:15]} 19. Re3 {[%clk 0:01:54.2]} 19... Nh7 {[%clk
0:01:11.6]} 20. Qh5 {[%clk 0:01:50.2]} 20... Qd4 {[%clk 0:01:00.3]} 21. Rh3
{[%clk 0:00:45.8]} 21... Qxf4+ {[%clk 0:00:58.6]} 22. Kb1 {[%clk 0:00:45.9]}
22... Qf5 {[%clk 0:00:50]} 23. Qe2 {[%clk 0:00:41.7]} 23... Bf6 {[%clk
0:00:42.2]} 24. Nf3 {[%clk 0:00:31]} 24... Rg8 {[%clk 0:00:37.8]} 25. Rh6 {[%clk
0:00:22]} 25... Bxf3 {[%clk 0:00:33.5]} 26. gxf3 {[%clk 0:00:21.9]} 26... Rg1+
{[%clk 0:00:32.8]} 27. Nd1 {[%clk 0:00:21.8]} 27... Qd5 {[%clk 0:00:29.7]} 0-1